bitfinex-derivatives/quotes_ETHF0:USTF0_20251216
["timestamp","ask_amount","ask_price","bid_price","bid_amount"]
[1765880801004,0.92873847,2933.6,2933.5,1.96160713]
[1765880801611,0.17293847,2933.6,2933.5,1.96160713]
[1765880804314,0.92873847,2933.6,2933.5,1.96160713]
[1765880804811,0.17293847,2933.6,2933.5,1.96160713]
[1765880806113,0.92873847,2933.6,2933.5,1.96160713]
[1765880806315,1.66063847,2933.6,2933.5,1.96160713]
[1765880806509,1.66063847,2933.6,2933.5,0.74230713]
[1765880806912,1.66063847,2933.6,2933.5,1.49430713]
[1765880807908,0.92873847,2933.6,2933.5,1.96160713]
[1765880808308,1.66063847,2933.6,2933.5,1.96160713]
[1765880808510,0.92625,2934.0,2933.9,1.4899]
[1765880808709,2.10995,2934.0,2933.9,0.7379]
[1765880809512,2.11277768,2934.0,2933.9,0.7379]
[1765880812620,2.11277768,2934.0,2933.9,1.4899]
[1765880812818,1.66097768,2934.0,2933.9,1.4899]
[1765880813722,2.11277768,2934.0,2933.9,1.4899]
[1765880815418,1.66097768,2934.0,2933.9,1.4899]
[1765880816315,0.17327768,2934.0,2933.9,1.4899]
[1765880818725,1.4877,2933.6,2933.5,0.00440713]
[1765880818929,1.65817,2933.6,2933.5,1.49430713]
[1765880819729,1.65817,2933.6,2933.5,0.74230713]
[1765880820730,1.65817,2933.6,2933.5,0.00440713]
[1765880822222,1.65817,2933.6,2933.3,0.00511745]
[1765880822528,0.7558,2932.6,2932.5,1.9327]
[1765880822722,1.4877,2932.6,2932.5,5.1405]
[1765880822929,1.4877,2932.6,2932.5,4.6977]
[1765880823326,1.9395,2933.0,2932.9,0.7379]
[1765880823531,1.5392,2932.6,2932.5,4.6989389]
[1765880823724,0.7558,2932.6,2932.5,5.1578389]
[1765880823925,1.5392,2932.6,2932.5,5.1578389]
[1765880824626,1.70973,2932.6,2932.5,3.2108389]
[1765880824930,1.70973,2932.6,2932.5,1.9761389]
[1765880825632,1.70973,2932.6,2932.5,1.5172389]
[1765880826326,0.92633,2932.6,2932.5,1.5172389]
[1765880826526,0.17053,2932.6,2932.5,1.9761389]
[1765880827023,0.17053,2932.6,2932.5,5.1839389]
[1765880827828,0.17053,2932.6,2932.5,1.9761389]
[1765880828933,0.94153,2932.6,2932.5,1.9761389]
[1765880829135,1.72493,2932.6,2932.5,1.9761389]
[1765880829836,0.94153,2932.6,2932.5,1.9761389]
[1765880830437,1.72493,2932.6,2932.5,1.5172389]
[1765880830831,1.72493,2932.6,2932.5,0.0030389]
[1765880837639,1.72493,2932.6,2932.5,1.5172389]
[1765880838146,4.93273,2932.6,2932.5,1.5172389]
[1765880838539,4.93273,2932.6,2932.5,0.7670389]
[1765880838942,4.93273,2932.6,2932.5,1.5172389]
[1765880839348,4.93273,2932.6,2932.5,0.7670389]
[1765880839941,1.72493,2932.6,2932.5,0.7670389]
[1765880840554,1.72493,2932.6,2932.5,1.5172389]
[1765880840946,4.93273,2932.6,2932.5,0.7670389]
[1765880841147,4.93273,2932.6,2932.5,0.0030389]
[1765880842148,6.46683381,2932.6,2932.3,0.00511745]
[1765880842359,1.72496,2932.1,2932.0,1.5142]
[1765880842546,0.17056,2932.1,2932.0,1.9731]
[1765880843045,1.72496,2932.1,2932.0,1.5142]
[1765880843239,1.72496,2932.1,2932.0,1.51713328]
[1765880843442,1.72496,2932.1,2932.0,1.97603328]
[1765880843651,0.94156,2932.1,2932.0,1.97603328]
[1765880843841,1.72496,2932.1,2932.0,1.97603328]
[1765880845849,0.94156,2932.1,2932.0,1.97603328]
[1765880846454,1.72496,2932.1,2932.0,1.97603328]
[1765880848453,0.94156,2932.1,2932.0,1.97603328]
[1765880849047,1.72496,2932.1,2932.0,1.97603328]
[1765880850055,0.94156,2932.1,2932.0,1.97603328]
[1765880850243,0.17056,2932.1,2932.0,1.97603328]
[1765880853347,3.2078,2932.4,2932.3,1.5251]
[1765880854350,1.68613,2932.6,2932.5,1.5029]
[1765880854752,2.67421877,2932.6,2932.5,1.5029]
[1765880854950,1.68613,2932.6,2932.5,1.5029]
[1765880855554,1.68613,2932.6,2932.5,1.9424]
[1765880856461,0.94533,2932.6,2932.5,3.47774071]
[1765880857562,0.17053,2932.6,2932.5,1.9424]
[1765880857861,0.94533,2932.6,2932.5,1.9424]
[1765880859065,1.70503,2932.6,2932.5,1.9424]
[1765880860464,1.70503,2932.6,2932.5,1.5029]
[1765880866065,1.70503,2932.6,2932.5,1.9424]
[1765880867465,0.94533,2932.6,2932.5,1.9424]
[1765880868266,0.17053,2932.6,2932.5,1.9424]
[1765880868467,0.17053,2932.6,2932.5,3.47782697]
[1765880868769,1.70503,2932.6,2932.5,1.53542697]
[1765880868963,1.70503,2932.6,2932.5,3.04612697]
[1765880869162,1.70503,2932.6,2932.5,3.48562697]
[1765880869562,0.94533,2932.6,2932.5,3.48562697]
[1765880869762,0.17053,2932.6,2932.5,3.48562697]
[1765880873961,1.70503,2932.6,2932.5,1.5107]
[1765880875062,0.17051,2933.0,2932.9,1.5107]
[1765880875369,1.70501,2933.0,2932.9,3.04612697]
[1765880875575,0.94531,2933.0,2932.9,3.04612697]
[1765880877778,0.17051,2933.0,2932.9,3.04612697]
[1765880878071,0.94531,2933.0,2932.9,3.04612697]
[1765880879274,0.17051,2933.0,2932.9,3.04612697]
[1765880880567,0.94531,2933.0,2932.9,3.04612697]
[1765880881077,0.17051,2933.0,2932.9,3.04612697]
[1765880887377,1.507,2933.5,2933.4,1.5336]
[1765880887579,0.7529,2933.5,2933.4,1.5336]
[1765880887875,1.507,2933.5,2933.4,1.5336]
[1765880888274,1.67748,2933.5,2933.4,1.5336]
[1765880888578,2.10718,2933.5,2933.4,1.5336]
[1765880889375,0.17048,2933.5,2933.4,1.5336]
[1765880889575,2.10718,2933.5,2933.4,0.7481]
[1765880889776,1.507,2932.9,2932.8,4.7414]
[1765880889978,1.507,2932.9,2932.8,3.9559]
[1765880890172,1.67751,2932.9,2932.8,3.2078]
[1765880890573,0.4297,2933.0,2932.5,5.1809]
[1765880890574,1.507,2932.6,2932.5,5.1809]
[1765880890774,1.507,2932.6,2932.5,4.7414]
[1765880891074,1.507,2932.3,2932.2,3.9559]
[1765880891676,1.507,2932.3,2932.2,4.7414]
[1765880892272,1.507,2932.3,2932.2,6.27682697]
[1765880892474,0.7529,2932.3,2932.2,6.27682697]
[1765880892876,1.507,2932.3,2932.2,6.27682697]
[1765880894086,1.507,2932.3,2932.2,4.7414]
[1765880897179,1.507,2932.3,2932.2,1.5336]
[1765880897382,1.507,2932.3,2932.2,3.06902697]
[1765880898179,1.507,2932.3,2932.2,1.5336]
[1765880898385,1.507,2932.3,2932.2,0.7481]
[1765880899187,1.507,2932.1,2932.0,3.07196025]
[1765880899988,1.507,2932.1,2932.0,3.49686025]
[1765880900189,0.7529,2932.1,2932.0,3.49686025]
[1765880900591,1.507,2932.1,2932.0,3.49686025]
[1765880900791,0.7529,2932.1,2932.0,3.49686025]
[1765880904107,4.88534,2932.4,2932.3,0.7481]
[1765880904307,4.88534,2932.4,2932.3,1.5336]
[1765880905506,4.13124,2932.4,2932.3,1.5336]
[1765880905903,4.88534,2932.4,2932.3,1.5336]
[1765880906401,4.13124,2932.4,2932.3,1.5336]
[1765880907208,4.88534,2932.4,2932.3,1.5336]
[1765880909308,4.88534,2932.4,2931.5,0.4673]
[1765880909309,6.0,2932.3,2930.0,0.4249]
[1765880909509,1.70607697,2930.6,2930.5,2.8349]
[1765880909808,4.91387697,2930.6,2930.5,0.41281736]
[1765880910010,6.25591904,2930.6,2930.5,0.41281736]
[1765880910208,0.17068,2930.1,2930.0,0.4249]
[1765880910402,4.91642327,2930.1,2930.0,0.42889936]
[1765880911207,0.17069,2929.9,2929.8,0.00511745]
[1765880911511,1.70611697,2929.9,2929.8,7.45e-06]
[1765880911811,7.70611697,2929.9,2929.8,7.45e-06]
[1765880912009,8.69596039,2929.9,2929.8,7.45e-06]
[1765880912316,8.69596039,2929.9,2929.8,2.86e-06]
[1765880913106,7.70611697,2929.9,2929.8,2.86e-06]
[1765880913306,0.17073,2929.1,2929.0,1.1896]
[1765880913614,3.37853,2929.1,2929.0,1.9095]
[1765880914306,3.37853,2929.1,2929.0,1.91246414]
[1765880914714,3.37853,2929.1,2929.0,1.19256414]
[1765880917212,3.37853,2929.1,2929.0,1.94176414]
[1765880920419,3.37853,2929.1,2929.0,0.42786414]
[1765880921415,9.37853,2929.1,2929.0,0.00296414]
[1765880921612,10.39484413,2929.1,2929.0,0.00296414]
[1765880922210,0.17075,2928.9,2928.8,7.45e-06]
[1765880922614,6.17075,2928.9,2928.8,7.45e-06]
[1765880923323,6.17075,2928.9,2928.8,0.00306706]
[1765880924320,7.18706413,2928.9,2928.8,0.00306706]
[1765880924521,6.17075,2928.9,2928.8,0.00306706]
[1765880924720,7.18706413,2928.9,2928.8,0.00306706]
[1765880924917,6.17075,2928.9,2928.8,0.00306706]
[1765880925112,7.18706413,2928.9,2928.8,0.00306706]
[1765880925317,0.17079,2928.1,2928.0,1.9154]
[1765880925518,3.37859,2928.1,2928.0,1.9154]
[1765880926320,3.37859,2928.1,2928.0,1.91978438]
[1765880930121,4.39258254,2928.1,2928.0,1.91978438]
[1765880931521,2.03168254,2928.1,2928.0,1.91978438]
[1765880932328,3.46388254,2928.1,2928.0,1.91978438]
[1765880932524,2.20247254,2928.1,2928.0,1.91978438]
[1765880935131,4.04315172,2928.1,2928.0,1.91978438]
[1765880936229,2.20247254,2928.1,2928.0,1.91978438]
[1765880937133,4.65671145,2928.1,2928.0,1.91978438]
[1765880937530,0.00511745,2928.3,2928.2,1.4905]
[1765880937828,0.00511745,2928.3,2928.2,4.6983]
[1765880939127,0.00511745,2928.3,2928.2,2.85378031]
[1765880942033,0.00511745,2928.3,2928.1,3.2078]
[1765880945231,1.84093692,2928.3,2928.1,3.2078]
[1765880947134,0.00511745,2928.3,2928.1,3.2078]
[1765880949537,0.93073297,2928.2,2928.1,3.2078]
[1765880950239,5.04361947,2928.8,2928.1,11.82604785]
[1765880950437,5.04361947,2928.8,2928.1,5.82604785]
[1765880950736,5.79191947,2928.8,2928.1,5.82604785]
[1765880950945,5.04361947,2928.8,2928.1,5.82604785]
[1765880951143,3.9561,2928.8,2928.1,5.82604785]
[1765880951346,0.00511745,2928.7,2928.1,5.82604785]
[1765880951642,1.745e-05,2928.7,2928.5,3.2078]
[1765880957345,1.745e-05,2928.7,2928.6,1.53884138]
[1765880958941,1.745e-05,2928.7,2928.6,3.07768276]
[1765880959144,0.4596,2929.0,2928.6,9.07768276]
[1765880959344,0.4596,2929.0,2928.9,4.74664138]
[1765880959845,1.2079,2929.0,2928.9,4.74664138]
[1765880960040,1.9166,2929.0,2928.9,1.53884138]
[1765880961347,1.2079,2929.0,2928.9,1.53884138]
[1765880962444,1.9166,2929.0,2928.9,1.53884138]
[1765880962643,1.2079,2929.0,2928.9,1.53884138]
[1765880962845,1.9166,2929.0,2928.9,1.53884138]
[1765880964647,2.08734,2929.0,2928.9,1.53884138]
[1765880964854,0.7483,2928.7,2928.6,4.74664138]
[1765880965045,1.37864,2929.0,2928.6,4.74664138]
[1765880965853,1.37864,2929.0,2928.6,1.53884138]
[1765880966050,0.91905,2928.9,2928.6,1.53884138]
[1765880966452,0.91905,2928.9,2928.6,4.74664138]
[1765880967252,0.17075,2928.9,2928.6,4.74664138]
[1765880967551,0.91905,2928.9,2928.6,4.74664138]
[1765880968152,1.62775,2928.9,2928.6,4.74664138]
[1765880968349,0.17075,2928.9,2928.6,4.74664138]
[1765880969951,0.91905,2928.9,2928.6,4.74664138]
[1765880970657,1.62775,2928.9,2928.6,4.74664138]
[1765880973053,1.488,2928.7,2928.6,4.74664138]
[1765880973355,1.62185,2928.9,2928.6,1.53884138]
[1765880974054,0.17075,2928.9,2928.6,4.74664138]
[1765880974349,1.64125,2928.9,2928.8,1.53884138]
[1765880974751,0.89405,2928.9,2928.8,1.53884138]
[1765880974954,0.17075,2928.9,2928.8,1.53884138]
[1765880977453,0.17075,2928.9,2928.8,1.53882542]
[1765880979153,1.64125,2928.9,2928.8,1.53882542]
[1765880979456,0.89405,2928.9,2928.8,1.53882542]
[1765880979657,1.64125,2928.9,2928.8,1.53882542]
[1765880983060,0.89405,2928.9,2928.8,1.53882542]
[1765880983762,1.64125,2928.9,2928.8,1.53882542]
[1765880986067,1.64125,2928.9,2928.6,1.53882542]
[1765880986266,1.4705,2928.7,2928.6,1.53882542]
[1765880993358,0.7233,2928.7,2928.6,1.53882542]
[1765880993564,4.3907,2929.0,2928.6,1.53882542]
[1765880993766,5.1379,2929.0,2928.9,1.53882542]
[1765880994470,3.6674,2929.0,2928.9,1.53882542]
[1765880995073,4.3907,2929.0,2928.9,1.53882542]
[1765880995369,5.1379,2929.0,2928.9,1.53882542]
[1765880997873,5.1379,2929.0,2928.9,1.53892885]
[1765880998972,1.1829,2929.0,2928.9,1.53892885]
[1765880999169,0.4596,2929.0,2928.9,1.53892885]
[1765880999370,1.9301,2929.0,2928.9,1.53892885]
[1765881000273,0.4596,2929.0,2928.9,1.53892885]
[1765881002478,0.00511745,2929.2,2928.9,4.74672885]
[1765881002775,0.00511745,2929.2,2929.1,1.53892885]
[1765881004283,0.00511745,2929.2,2929.1,3.0778577]
[1765881005374,0.00511745,2929.2,2929.1,1.53892885]
[1765881007976,0.4154,2929.5,2929.1,3.0778577]
[1765881008277,1.1966,2929.5,2929.4,4.74672885]
[1765881008777,1.9762,2929.5,2929.4,3.2078]
[1765881008978,1.5608,2929.2,2929.1,3.2078]
[1765881009174,1.5608,2928.9,2928.8,4.74672885]
[1765881010885,1.5608,2928.7,2928.6,1.53892885]
[1765881013383,0.7812,2928.7,2928.6,1.53892885]
[1765881014179,1.2131,2929.0,2928.6,1.53892885]
[1765881014488,1.9927,2929.0,2928.9,1.53892885]
[1765881015478,0.4319,2929.0,2928.9,1.53892885]
[1765881017189,1.2131,2929.0,2928.9,1.53892885]
[1765881017487,0.4319,2929.0,2928.9,1.53892885]
[1765881019687,1.9927,2929.0,2928.9,1.53892885]
[1765881020174,1.2131,2929.0,2928.9,1.53892885]
[1765881020380,0.4319,2929.0,2928.9,1.53892885]
[1765881020690,1.9927,2929.0,2928.9,1.53892885]
[1765881022590,1.5608,2928.8,2928.7,1.53892885]
[1765881023292,0.7812,2928.8,2928.7,1.53892885]
[1765881023493,1.5608,2928.8,2928.7,1.53892885]
[1765881024299,1.5608,2928.7,2928.6,1.53892885]
[1765881026392,0.7812,2928.7,2928.6,1.53892885]
[1765881026586,1.5608,2928.7,2928.6,1.53892885]
[1765881028094,1.2131,2928.5,2928.2,3.2078]
[1765881028294,1.9927,2928.5,2928.4,1.53892885]
[1765881029095,1.2131,2928.5,2928.4,1.53892885]
[1765881030897,0.4319,2928.5,2928.4,1.53892885]
[1765881034890,0.4319,2928.5,2928.4,3.0778577]
[1765881035594,0.4319,2929.0,2928.9,1.53892885]
[1765881036988,0.4319,2929.0,2928.9,42.33892885]
[1765881037796,3.6232,2929.5,2928.9,42.33892885]
[1765881037996,3.6232,2929.5,2929.4,1.53892885]
[1765881038705,0.4154,2929.5,2929.4,1.53892885]
[1765881039097,0.00511745,2929.7,2929.4,3.0778577]
[1765881039288,0.00511745,2929.7,2929.6,1.53892885]
[1765881039600,0.00511745,2929.7,2929.5,1.53761058]
[1765881039790,1.4455,2929.6,2929.5,1.53761058]
[1765881040388,0.7139,2929.6,2929.5,1.53761058]
[1765881041002,1.4455,2929.6,2929.5,1.53761058]
[1765881042003,1.8945,2929.5,2929.4,0.00511745]
[1765881048106,2.06521,2929.5,2929.4,1.745e-05]
[1765881048804,5.27301,2929.5,2929.4,1.745e-05]
[1765881049004,2.06521,2929.5,2929.4,1.745e-05]
[1765881058911,1.33361,2929.5,2929.4,1.745e-05]
[1765881059207,2.06521,2929.5,2929.4,1.745e-05]
[1765881061209,1.33361,2929.5,2929.4,1.745e-05]
[1765881061715,2.06521,2929.5,2929.4,1.745e-05]
[1765881062515,1.8945,2929.5,2929.4,1.745e-05]
[1765881063618,1.9804,2929.5,2929.4,1.745e-05]
[1765881065324,1.9804,2929.5,2929.4,1.53813696]
[1765881066307,0.449,2929.5,2929.4,1.53813696]
[1765881067012,1.2045,2929.5,2929.4,1.53813696]
[1765881067318,1.9804,2929.5,2929.4,1.53813696]
[1765881068213,1.2249,2929.5,2929.4,1.53813696]
[1765881068420,1.9804,2929.5,2929.4,1.53813696]
[1765881072219,0.449,2929.5,2929.4,3.07625647]
[1765881072723,0.449,2929.5,2929.4,1.53813696]
[1765881072922,0.00511745,2929.7,2929.6,0.0562]
[1765881075616,0.00511745,2929.7,2929.6,3.264]
[1765881076428,1.9468,2930.0,2929.9,0.0281]
[1765881076621,1.9468,2930.0,2929.9,1.59431951]
[1765881081032,1.1709,2930.0,2929.9,1.59431951]
[1765881081428,0.4154,2930.0,2929.9,1.59431951]
[1765881081627,0.0025163,2930.1,2930.0,0.0562]
[1765881081828,0.7580163,2930.1,2930.0,0.0562]
[1765881083334,0.0025163,2930.1,2930.0,0.0562]
[1765881083730,1.5339163,2930.1,2930.0,0.0281]
[1765881083932,1.9815,2930.0,2929.9,4.74591951]
[1765881084336,1.9815,2930.0,2929.9,5.18941951]
[1765881084737,1.9815,2930.0,2929.9,4.74591951]
[1765881086841,1.9815,2930.0,2929.9,5.18941951]
[1765881087340,1.9815,2930.0,2929.9,1.98161951]
[1765881087535,1.9815,2930.0,2929.9,5.18941951]
[1765881089647,1.9815,2930.0,2929.9,5.63291951]
[1765881090344,1.9815,2930.0,2929.9,5.18941951]
[1765881092843,1.9815,2930.0,2929.9,4.74591951]
[1765881094044,1.9815,2930.0,2929.9,5.18941951]
[1765881095741,1.9815,2930.0,2929.9,1.53811951]
[1765881098345,1.9815,2930.0,2929.9,1.98151951]
[1765881099050,1.9815,2930.0,2929.9,1.53811951]
[1765881100749,1.4884,2929.9,2929.8,1.98151951]
[1765881100952,1.4884,2929.7,2929.6,3.6512]
[1765881101142,1.4884,2929.7,2929.6,3.2078]
[1765881101342,1.4884,2929.7,2929.6,5.18936787]
[1765881102350,1.4884,2929.7,2929.6,4.74596787]
[1765881102750,1.4884,2929.7,2929.6,5.18936787]
[1765881103351,1.4884,2929.7,2929.6,5.63276787]
[1765881103749,1.4884,2929.7,2929.6,4.0946]
[1765881116660,1.4884,2929.7,2929.6,0.8868]
[1765881119457,0.7545,2929.7,2929.6,0.8868]
[1765881119760,1.37528,2930.0,2929.9,0.8868]
[1765881119961,2.10918,2930.0,2929.9,2.42496787]
[1765881120258,1.2046,2930.0,2929.9,2.42496787]
[1765881121056,0.4501,2930.0,2929.9,2.42496787]
[1765881121561,0.0025163,2930.1,2930.0,0.8868]
[1765881121860,0.4581,2930.0,2929.9,0.8868]
[1765881122858,1.9465,2930.0,2929.6,3.2078]
[1765881123054,1.9465,2930.0,2929.9,2.42496787]
[1765881123253,1.2126,2930.0,2929.9,2.42496787]
[1765881124563,0.4581,2930.0,2929.9,2.42496787]
[1765881126561,1.2278,2930.0,2929.9,2.42496787]
[1765881127265,0.4581,2930.0,2929.9,2.42496787]
[1765881127871,1.2278,2930.0,2929.9,2.42496787]
[1765881128067,0.4581,2930.0,2929.9,2.42496787]
[1765881130962,0.7722163,2930.1,2930.0,0.8846]
[1765881133774,0.7722163,2930.1,2930.0,2.4221248]
[1765881138880,0.0025163,2930.1,2930.0,2.4221248]
[1765881139081,0.7722163,2930.1,2930.0,2.4221248]
[1765881139882,0.0025163,2930.1,2930.0,2.4221248]
[1765881140377,0.00511745,2930.2,2930.1,0.8846]
[1765881140779,0.00511745,2930.2,2930.1,2.4221248]
[1765881140983,3.2078,2930.3,2930.1,43.2221248]
[1765881141282,3.2078,2930.6,2930.4,0.8846]
[1765881141484,0.45321996,2930.5,2930.4,3.96348188]
[1765881144888,1.95141996,2930.5,2930.4,1.54135708]
[1765881145187,1.95141996,2930.5,2930.4,1.98365708]
[1765881145888,1.95141996,2930.5,2930.4,2.42595708]
[1765881147193,1.95141996,2930.5,2930.4,3.96348188]
[1765881147392,1.22291996,2930.5,2930.4,3.96348188]
[1765881147792,1.95141996,2930.5,2930.4,3.96348188]
[1765881148696,1.22291996,2930.5,2930.4,3.96348188]
[1765881149593,1.95141996,2930.5,2930.4,3.96348188]
[1765881152398,1.22291996,2930.5,2930.4,3.96348188]
[1765881153199,1.95141996,2930.5,2930.4,3.96508188]
[1765881153597,1.22291996,2930.5,2930.4,3.96508188]
[1765881154000,1.94651996,2930.5,2930.4,3.96508188]
[1765881154399,1.22291996,2930.5,2930.4,3.96508188]
[1765881154600,1.94651996,2930.5,2930.4,3.96508188]
[1765881155799,1.22291996,2930.5,2930.4,3.96508188]
[1765881156097,0.45321996,2930.5,2930.4,3.96508188]
[1765881156403,0.00421996,2930.5,2930.4,3.96508188]
[1765881156703,0.47601996,2930.5,2930.4,3.96508188]
[1765881157797,0.449,2931.0,2930.6,1.4343]
[1765881158098,1.887,2931.0,2930.9,2.9718248]
[1765881158800,1.89018971,2931.0,2930.9,2.2508248]
[1765881159097,1.89018971,2931.0,2930.9,1.5375248]
[1765881159300,1.89018971,2931.0,2930.4,4.74915708]
[1765881159501,1.89018971,2931.0,2930.9,1.5375248]
[1765881161000,1.16658971,2931.0,2930.9,2.9718248]
[1765881161202,0.00318971,2931.0,2930.9,2.9718248]
[1765881161506,1.18938971,2931.0,2930.9,2.97084976]
[1765881161893,1.91298971,2931.0,2930.9,2.97084976]
[1765881162700,0.00318971,2931.0,2930.9,2.97084976]
[1765881164307,1.18938971,2931.0,2930.9,2.97084976]
[1765881165904,1.18938971,2931.0,2930.9,6.17864976]
[1765881166506,0.47498971,2931.0,2930.9,6.17864976]
[1765881166705,0.00318971,2931.0,2930.9,6.17864976]
[1765881171312,1.91298971,2931.0,2930.9,5.45764976]
[1765881171511,1.91298971,2931.0,2930.9,6.17864976]
[1765881172014,1.18938971,2931.0,2930.9,6.17864976]
[1765881172915,1.91298971,2931.0,2930.9,4.74434976]
[1765881174410,1.91298971,2931.0,2930.9,5.45764976]
[1765881178521,1.91298971,2931.0,2930.9,4.74434976]
[1765881180514,1.91298971,2931.0,2930.9,3.2078]
[1765881181113,0.47498971,2931.0,2930.9,6.17864976]
[1765881181716,1.1645,2931.5,2931.4,0.7133]
[1765881181919,1.8881,2931.5,2931.4,2.24984976]
[1765881182124,1.8881,2931.5,2931.4,2.97084976]
[1765881182422,1.438,2931.3,2931.2,0.00511745]
[1765881182816,1.44199056,2931.3,2931.2,0.00511745]
[1765881183319,1.61260056,2931.3,2931.2,0.00511745]
[1765881195132,4.82040056,2931.3,2931.2,0.00511745]
[1765881195726,4.82040056,2931.3,2931.2,1.745e-05]
[1765881196029,5.730834,2931.3,2931.2,1.745e-05]
[1765881197225,4.82040056,2931.3,2931.2,1.745e-05]
[1765881198726,4.82040056,2931.3,2931.2,0.75911745]
[1765881198927,4.10600056,2931.3,2931.2,1.745e-05]
[1765881199630,3.38240056,2931.3,2931.2,3.02966721]
[1765881199828,4.93050056,2931.3,2931.2,0.75911745]
[1765881200130,3.38240056,2931.3,2931.2,1.745e-05]
[1765881201030,4.15130056,2931.3,2931.2,1.49311745]
[1765881201426,4.93050056,2931.3,2931.2,1.49311745]
[1765881202133,4.93050056,2931.3,2931.2,0.75911745]
[1765881202737,3.38240056,2931.3,2931.2,1.745e-05]
[1765881203433,4.93050056,2931.3,2931.2,0.75911745]
[1765881204936,1.72270056,2931.3,2931.2,1.49311745]
[1765881206140,0.17460056,2931.3,2931.2,1.745e-05]
[1765881208941,1.72270056,2931.3,2931.2,0.75911745]
[1765881209339,0.95380056,2931.3,2931.2,1.745e-05]
[1765881209540,1.72270056,2931.3,2931.2,0.75911745]
[1765881210647,1.72270056,2931.3,2931.2,1.49311745]
[1765881210844,0.94350056,2931.3,2931.2,3.02987208]
[1765881211338,1.55209056,2931.3,2931.2,3.02987208]
[1765881211531,0.77289056,2931.3,2931.2,3.02987208]
[1765881212636,0.00399056,2931.3,2931.2,6.23767208]
[1765881213038,1.50939056,2931.3,2931.2,6.23767208]
[1765881213736,1.50939056,2931.3,2931.2,3.92861745]
[1765881214338,1.50939056,2931.3,2931.2,0.72081745]
[1765881214542,1.50939056,2931.3,2931.2,3.92861745]
[1765881215843,0.77289056,2931.3,2931.2,4.64271745]
[1765881216041,1.52909056,2931.3,2931.2,4.64271745]
[1765881216741,0.77289056,2931.3,2931.2,4.64271745]
[1765881217051,0.00399056,2931.3,2931.2,4.64271745]
[1765881218347,0.72489056,2931.3,2931.2,4.64271745]
[1765881220241,0.00399056,2931.3,2931.2,4.64271745]
[1765881221048,1.24635832,2932.2,2931.2,4.64271745]
[1765881221049,5.137,2933.0,2932.9,1.4349]
[1765881221240,5.137,2933.0,2932.9,2.97165463]
[1765881221435,1.9292,2933.0,2932.9,1.53675463]
[1765881221641,1.4771,2932.6,2932.5,3.9286]
[1765881221934,1.47957826,2932.6,2932.5,3.93295085]
[1765881222338,1.47957826,2932.6,2932.5,0.00435085]
[1765881222741,1.47957826,2932.6,2932.5,5.46970548]
[1765881223448,1.47957826,2932.6,2932.5,5.46802066]
[1765881225545,1.47957826,2932.6,2932.5,3.21215085]
[1765881225746,1.47957826,2932.6,2932.5,4.74722066]
[1765881227545,1.47957826,2932.6,2932.5,1.53942066]
[1765881230052,1.47957826,2932.6,2932.5,2.26022066]
[1765881231945,1.47957826,2932.6,2932.5,1.53942066]
[1765881233150,1.65010826,2932.6,2932.5,1.53942066]
[1765881236943,1.65010826,2932.6,2932.5,0.00435085]
[1765881239253,1.65010826,2932.6,2932.5,1.53942066]
[1765881239550,1.65010826,2932.6,2932.5,0.00435085]
[1765881250166,4.85790826,2932.6,2932.5,0.00435085]
[1765881252267,1.69308,2931.7,2931.6,0.7402]
[1765881252470,1.5225,2931.4,2931.3,2.27526981]
[1765881252771,1.5225,2931.4,2931.3,3.00856981]
[1765881253270,1.5225,2931.4,2931.3,3.01209651]
[1765881253672,1.6931,2931.4,2931.3,2.27879651]
[1765881254470,1.6931,2931.4,2931.3,3.01209651]
[1765881255566,0.9507,2931.4,2931.3,3.01209651]
[1765881255764,0.1706,2931.4,2931.3,3.01209651]
[1765881256175,0.9507,2931.4,2931.3,3.01209651]
[1765881256471,0.1706,2931.4,2931.3,3.01209651]
[1765881259376,1.6931,2931.4,2931.3,3.01209651]
[1765881259674,1.6931,2931.4,2931.3,1.53859651]
[1765881260380,1.6931,2931.4,2931.3,1.4770267]
[1765881260576,1.6931,2931.4,2931.3,3.01209651]
[1765881260770,1.6931,2931.4,2931.3,0.0035267]
[1765881263187,1.6931,2931.4,2931.3,0.7437267]
[1765881263682,1.6931,2931.4,2931.3,1.4770267]
[1765881264379,0.9507,2931.4,2931.3,1.4770267]
[1765881265481,1.6931,2931.4,2931.3,1.4770267]
[1765881265881,0.1706,2931.4,2931.3,1.4770267]
[1765881266585,0.9507,2931.4,2931.3,1.4770267]
[1765881267177,1.6931,2931.4,2931.3,1.4770267]
[1765881270387,1.6931,2931.4,2931.3,3.01358061]
[1765881273988,1.6753,2931.4,2931.3,3.01358061]
[1765881274187,0.1706,2931.4,2931.3,3.01358061]
[1765881274383,0.8785,2931.4,2931.3,3.01358061]
[1765881274777,0.1706,2931.4,2931.3,3.01358061]
[1765881275385,1.6031,2931.4,2931.3,3.01358061]
[1765881277192,0.8785,2931.4,2931.3,3.01358061]
[1765881277394,0.1706,2931.4,2931.3,3.01358061]
[1765881280287,0.1706,2931.4,2931.3,4.55013452]
[1765881280688,3.2078,2931.9,2931.3,4.55013452]
[1765881280983,4.81087,2931.9,2931.8,2.97075391]
[1765881281192,0.17057,2931.9,2931.8,2.97075391]
[1765881282499,3.9157,2932.2,2932.1,1.4342]
[1765881282700,3.9157,2932.2,2932.1,2.97075391]
[1765881283002,4.6403,2932.2,2932.1,2.97075391]
[1765881283498,4.6403,2932.2,2932.1,1.4342]
[1765881283696,4.81085,2932.2,2932.1,0.7204]
[1765881283995,4.81085,2932.2,2932.0,2.96994745]
[1765881283996,0.87846,2932.1,2932.0,2.96994745]
[1765881284201,1.60306,2932.1,2932.0,1.53574745]
[1765881284402,1.60306,2932.1,2932.0,2.25614745]
[1765881284898,0.7079,2931.4,2931.3,3.9251267]
[1765881285096,1.60308,2931.7,2931.6,1.4342]
[1765881285294,1.60308,2931.7,2931.6,2.96994745]
[1765881285693,1.60308,2931.7,2931.6,2.25614745]
[1765881286205,1.4325,2931.4,2931.3,5.46747415]
[1765881286396,0.4648,2931.5,2931.4,1.4342]
[1765881286900,1.1727,2931.5,2931.4,1.4342]
[1765881287102,1.8973,2931.5,2931.4,1.4342]
[1765881289599,1.8973,2931.5,2931.4,0.7204]
[1765881289909,0.17059,2931.6,2931.5,1.6775]
[1765881290400,1.8973,2932.0,2931.9,1.4342]
[1765881290609,1.1727,2932.0,2931.9,2.96994745]
[1765881291201,3.37836,2932.2,2932.1,1.4342]